bitfinex/quotes_ETHUSD_20251119
["timestamp","ask_amount","ask_price","bid_price","bid_amount"]
[1763562354276,0.17468489,3035.2,3033.2,0.90699264]
[1763562354481,0.0658984,3035.7,3033.2,0.90699264]
[1763562354482,0.0658984,3035.7,3033.3,0.124]
[1763562354682,0.0658984,3035.7,3033.5,0.90699264]
[1763562354915,0.68065761,3036.0,3033.5,0.90699264]
[1763562355114,0.68065761,3036.2,3033.6,0.4646]
[1763562355287,0.68065761,3036.1,3033.7,0.124]
[1763562355617,0.68065761,3036.1,3033.6,0.4646]
[1763562355793,0.68065761,3036.2,3033.8,1.03099264]
[1763562355980,0.68065761,3036.1,3033.9,1.25866833]
[1763562356177,0.68065761,3036.2,3033.9,1.25866833]
[1763562356482,0.72182884,3036.1,3034.0,0.4646]
[1763562356691,0.72182884,3036.1,3034.1,0.90699264]
[1763562356692,0.51718782,3035.7,3034.1,0.90699264]
[1763562356923,0.51718782,3035.7,3034.0,0.4646]
[1763562357100,1.19784543,3035.7,3034.1,0.90699264]
[1763562357300,1.19784543,3035.7,3034.0,3.76057779]
[1763562357301,0.405504,3035.6,3034.0,0.4646]
[1763562357620,1.08616161,3035.6,3034.0,0.4646]
[1763562357819,0.17818494,3035.5,3034.0,0.4646]
[1763562358019,0.17818494,3035.5,3034.0,1.37159264]
[1763562358237,0.04118073,3035.4,3034.1,0.4646]
[1763562358825,0.04118073,3035.4,3034.3,0.90699264]
[1763562359022,0.51918782,3035.7,3034.3,0.4646]
[1763562359233,0.51918782,3035.7,3034.1,0.124]
[1763562359544,0.51918782,3035.7,3034.4,0.4646]
[1763562359545,1.20102188,3035.7,3034.4,0.4646]
[1763562359707,0.51918782,3035.7,3034.4,0.4646]
[1763562360345,0.51918782,3035.7,3034.4,0.5886]
[1763562360650,0.51918782,3035.7,3035.6,0.1825]
[1763562360817,0.002,3035.7,3035.6,0.1825]
[1763562361003,0.002,3035.7,3035.1,0.90699264]
[1763562361331,0.405504,3035.5,3033.6,0.4646]
[1763562361504,0.405504,3035.3,3033.9,0.4646]
[1763562361700,0.68247421,3035.6,3033.9,7.05677508]
[1763562362001,0.407504,3035.7,3034.0,0.72392751]
[1763562362202,0.002,3035.7,3034.3,6.90969069]
[1763562362509,0.002,3035.7,3034.4,0.4646]
[1763562362845,0.002,3035.7,3034.5,6.59087164]
[1763562363004,0.002,3035.7,3034.6,1.70353397]
[1763562363207,0.002,3035.7,3034.7,0.5886]
[1763562363541,0.002,3035.7,3035.6,0.1825]
[1763562363912,0.002,3035.7,3035.6,0.6471]
[1763562364715,0.002,3035.7,3035.6,3.94134166]
[1763562365028,0.0012,3035.7,3035.6,4.9713343]
[1763562365207,0.0012,3035.7,3035.6,6.01441952]
[1763562365407,0.51698198,3036.4,3035.7,0.90699264]
[1763562365639,0.002,3037.4,3035.7,1.37159264]
[1763562365848,0.002,3037.4,3035.8,0.4646]
[1763562366619,0.407504,3037.4,3035.8,0.4646]
[1763562366816,0.405504,3037.2,3035.8,0.4646]
[1763562367216,0.405504,3037.3,3035.8,3.75856349]
[1763562367421,0.002,3037.4,3035.9,1.02999264]
[1763562367659,0.002,3037.4,3036.3,0.90699264]
[1763562367818,0.002,3037.4,3036.4,0.123]
[1763562368026,0.002,3037.4,3036.5,0.123]
[1763562368246,0.002,3037.4,3037.3,0.1989]
[1763562368634,0.002,3037.4,3037.3,0.6733]
[1763562368835,0.002,3037.4,3037.3,4.87269049]
[1763562369035,0.1785,3038.8,3037.4,0.90699264]
[1763562369234,0.1805,3039.3,3037.4,1.38139264]
[1763562369437,0.002,3039.7,3037.5,0.4744]
[1763562369438,0.1805,3039.6,3037.5,0.4744]
[1763562369823,0.002,3039.7,3038.2,0.90699264]
[1763562370019,0.002,3039.7,3038.3,0.123]
[1763562370255,0.002,3039.7,3038.3,0.6733]
[1763562370456,0.002,3039.7,3038.4,0.4744]
[1763562370623,0.002,3039.7,3038.5,0.123]
[1763562370952,0.002,3039.7,3038.6,0.90699264]
[1763562371257,0.002,3039.7,3038.6,0.123]
[1763562371956,0.002,3039.7,3038.6,0.4744]
[1763562372131,0.002,3039.7,3038.3,0.1989]
[1763562372818,0.22362247,3039.7,3038.3,0.1989]
[1763562373243,0.405504,3039.6,3037.3,0.6733]
[1763562373447,0.405504,3039.6,3037.4,0.90699264]
[1763562373647,0.1825,3039.7,3037.4,1.2909082]
[1763562373871,0.51652928,3039.1,3037.5,0.4744]
[1763562374599,0.04113195,3039.0,3037.6,0.123]
[1763562374801,0.04113195,3039.0,3037.5,0.4744]
[1763562374954,0.51652928,3039.1,3037.5,0.4744]
[1763562375149,0.51652928,3039.1,3037.6,0.90699264]
[1763562375354,0.04113195,3039.0,3037.6,1.82556694]
[1763562375677,0.51652928,3039.1,3037.7,0.4744]
[1763562375878,0.04113195,3039.0,3037.7,0.4744]
[1763562376261,0.0411333,3038.9,3037.7,0.4744]
[1763562376585,0.0411333,3038.9,3037.3,0.1989]
[1763562376807,0.405504,3038.8,3037.3,0.1989]
[1763562376952,0.405504,3038.8,3037.2,0.4744]
[1763562376953,0.04113601,3038.7,3037.2,0.4744]
[1763562377286,0.22163601,3038.7,3037.2,0.4744]
[1763562377476,0.04113736,3038.6,3037.2,0.4744]
[1763562377679,0.04113736,3038.6,3037.0,0.1989]
[1763562377911,0.04113736,3038.6,3035.2,0.4744]
[1763562377912,5.79492862,3037.5,3035.2,0.4744]
[1763562378191,2.42229899,3037.4,3035.6,0.001]
[1763562378352,2.60279899,3037.4,3035.6,0.001]
[1763562378685,0.405504,3037.2,3035.6,0.001]
[1763562379058,0.405504,3037.0,3035.6,0.001]
[1763562380591,0.405504,3036.8,3035.6,0.001]
[1763562381086,0.1805,3036.9,3035.6,0.001]
[1763562382374,0.405504,3036.8,3035.6,0.001]
[1763562382879,0.1805,3036.9,3035.6,0.1999]
[1763562383098,0.1805,3037.6,3035.8,0.90699264]
[1763562383459,0.1805,3037.6,3035.8,1.38139264]
[1763562383698,0.405504,3037.5,3035.8,1.38139264]
[1763562384055,0.86027079,3038.1,3035.9,0.4744]
[1763562384291,0.22164549,3038.0,3035.9,0.4744]
[1763562384524,0.22164549,3038.0,3036.0,0.122]
[1763562384654,0.22164549,3038.0,3035.9,0.4744]
[1763562384866,0.22164549,3038.0,3036.0,0.34183485]
[1763562385083,0.22164549,3038.0,3036.2,0.90699264]
[1763562385692,0.405504,3037.9,3036.3,0.4878]
[1763562385991,0.405504,3037.7,3036.0,0.21983485]
[1763562386180,0.0411509,3037.6,3036.0,0.90699264]
[1763562386385,0.1805,3037.8,3036.1,0.4878]
[1763562386579,0.04114955,3037.7,3036.1,0.4878]
[1763562386960,0.1805,3038.3,3036.3,0.90699264]
[1763562387163,0.04114278,3038.2,3036.4,0.4878]
[1763562387561,0.22154142,3038.3,3036.4,0.4878]
[1763562387762,0.1804,3038.2,3036.4,0.4878]
[1763562387963,0.405504,3038.1,3036.4,0.4878]
[1763562388292,0.51686399,3037.7,3036.0,0.42009088]
[1763562388499,0.0411509,3037.6,3036.1,0.90699264]
[1763562389098,0.0411509,3037.6,3036.2,0.90699264]
[1763562389626,0.51686399,3037.7,3036.3,0.4878]
[1763562389826,0.405504,3037.5,3035.8,0.90699264]
[1763562390031,0.04035361,3037.4,3035.8,0.90699264]
[1763562390210,0.04035361,3037.4,3035.9,0.4878]
[1763562391197,0.04035361,3037.4,3036.0,0.90699264]
[1763562391526,0.405504,3037.5,3036.0,0.90699264]
[1763562391824,0.405504,3037.5,3036.1,0.4878]
[1763562392047,0.68233613,3037.6,3036.1,0.9566661]
[1763562392193,0.68233613,3037.6,3036.2,0.4878]
[1763562392395,0.55801354,3037.7,3036.3,0.122]
[1763562392796,0.04114955,3037.7,3036.4,0.4878]
[1763562393020,1.20037485,3038.1,3036.4,0.4878]
[1763562393301,1.20037485,3038.1,3036.6,0.90699264]
[1763562393302,0.22326086,3038.1,3036.6,0.90699264]
[1763562393502,0.68386879,3038.4,3036.8,0.90699264]
[1763562393825,0.68386879,3038.6,3036.9,0.121]
[1763562394002,0.002,3038.7,3037.0,0.4878]
[1763562394327,0.002,3038.7,3038.1,0.90699264]
[1763562394528,0.002,3038.7,3038.2,0.6863]
[1763562394703,0.002,3038.7,3038.3,0.4878]
[1763562395520,0.002,3038.7,3038.3,1.39479264]
[1763562395698,0.002,3038.7,3038.3,3.77911103]
[1763562395920,0.002,3038.7,3038.4,0.4878]
[1763562396547,0.002,3038.7,3038.4,2.12168517]
[1763562396862,0.002,3038.7,3038.5,0.4878]
[1763562397331,0.002,3038.7,3038.6,4.19798191]
[1763562397530,0.002,3038.7,3038.6,0.90699264]
[1763562398130,0.002,3038.7,3038.1,0.4903]
[1763562398440,0.002,3038.7,3037.4,0.4903]
[1763562398642,0.002,3038.7,3037.5,3.78248106]
[1763562398840,0.002,3038.7,3037.6,1.29734075]
[1763562399057,0.002,3038.7,3037.6,0.88064811]
[1763562399256,0.002,3038.7,3037.6,0.4903]
[1763562400316,0.51669591,3038.5,3037.2,0.1985]
[1763562400522,0.04114007,3038.4,3037.3,1.39729264]
[1763562400747,0.51669591,3038.5,3037.3,1.39729264]
[1763562400953,0.002,3038.7,3037.3,2.22747149]
[1763562401152,0.04313601,3038.7,3037.2,0.6888]
[1763562401354,0.1804,3038.6,3037.2,0.1985]
[1763562401556,0.72507734,3038.5,3036.6,0.4903]
[1763562401718,0.04113871,3038.5,3036.6,0.4903]
[1763562401920,0.1804,3038.6,3036.6,0.4903]
[1763562402119,0.1824,3038.7,3036.8,0.90699264]
[1763562402318,0.68411112,3038.6,3036.9,1.16049213]
[1763562402552,0.1824,3038.7,3036.9,1.16049213]
[1763562402754,0.72525887,3038.6,3037.0,0.4903]
[1763562402964,0.72526022,3038.5,3037.0,0.4903]
[1763562403256,1.08962403,3038.4,3036.7,0.90699264]
[1763562403474,0.585904,3038.4,3036.8,0.4903]
[1763562403674,0.22154142,3038.3,3036.8,0.4903]
[1763562404064,0.1804,3038.3,3036.8,0.4903]
[1763562404255,0.51677687,3038.0,3036.8,0.4903]
[1763562405143,0.51677687,3038.0,3036.6,0.0070604]
[1763562405144,0.405504,3037.9,3036.6,0.0070604]
[1763562405343,0.86449779,3037.8,3036.1,0.4903]
[1763562405562,0.86449779,3037.8,3036.1,1.79451947]
[1763562405951,0.68409779,3037.8,3036.1,1.79451947]
[1763562406152,0.1804,3037.7,3036.2,0.4903]
[1763562406358,0.1804,3037.7,3036.2,0.4973762]
[1763562406543,0.51677687,3038.0,3036.2,0.4903]
[1763562406770,0.51677687,3038.0,3036.3,0.17945195]
[1763562406968,0.1804,3037.9,3036.3,0.17945195]
[1763562407482,0.1804,3037.9,3036.4,1.39729264]
[1763562408550,0.1804,3037.9,3036.5,0.4903]
[1763562409786,0.1804,3037.9,3036.5,3.783535]
[1763562409969,0.51685754,3037.6,3036.6,0.90699264]
[1763562410777,0.51685754,3037.6,3036.5,0.90699264]
[1763562411577,0.51685754,3037.6,3036.2,1.39729264]
[1763562411772,0.51685754,3037.6,3036.4,0.90699264]
[1763562412167,0.51685754,3037.6,3036.4,1.39729264]
[1763562412491,0.51685754,3037.6,3036.5,0.4903]
[1763562412880,0.04115226,3037.5,3036.5,0.4903]
[1763562413585,0.04115226,3037.5,3036.2,4.20057033]
[1763562413890,0.04115226,3037.5,3036.2,0.91407132]
[1763562413891,0.3608,3037.4,3036.2,0.91407132]
[1763562414089,7.47539564,3037.4,3035.6,0.001]
[1763562414390,0.405504,3036.9,3035.6,0.001]
[1763562414987,0.404704,3036.9,3035.6,0.001]
[1763562415154,0.1804,3036.8,3035.6,0.001]
[1763562416962,0.405504,3036.7,3035.6,0.001]
[1763562417155,1.09021876,3036.7,3035.6,0.001]
[1763562417356,0.405504,3036.5,3035.6,0.001]
[1763562417587,0.92261963,3036.5,3035.6,0.001]
[1763562417888,0.405504,3036.3,3035.6,0.001]
[1763562418268,0.405504,3036.1,3035.6,0.001]
[1763562418808,0.405504,3035.9,3035.6,0.001]
[1763562419212,0.1804,3036.4,3035.6,0.001]
[1763562419714,0.405504,3036.3,3035.6,0.001]
[1763562420079,0.51711563,3036.5,3035.6,0.4913]
[1763562421917,0.51711563,3036.5,3035.6,0.001]
[1763562421918,0.1804,3036.4,3035.6,0.001]
[1763562422212,1.31249664,3036.1,3033.4,0.1882]
[1763562422415,1.31249664,3036.1,3033.1,0.4903]
[1763562422416,1.31249664,3035.2,3033.1,0.4903]
[1763562422579,1.31249664,3035.2,3032.9,0.1882]
[1763562422782,0.405504,3035.0,3032.9,0.1882]
[1763562423100,0.405504,3035.0,3031.7,5.79492862]
[1763562423319,1.31249664,3034.6,3032.2,0.4903]
[1763562423620,0.405504,3034.4,3032.2,0.4903]
[1763562424007,0.405504,3034.2,3032.2,0.4903]
[1763562424514,0.405504,3034.0,3031.9,0.1882]
[1763562424725,0.405504,3034.0,3031.0,0.1882]
[1763562424726,0.405504,3034.0,3031.7,0.90699264]
[1763562424932,0.405504,3033.8,3031.1,0.4903]
[1763562425144,1.31249664,3033.4,3031.1,0.4903]
[1763562425481,0.405504,3033.2,3031.1,0.4903]
[1763562425992,0.405504,3033.0,3031.1,0.4903]
[1763562426231,0.1794,3033.3,3031.2,0.91420215]
[1763562426386,0.405504,3033.2,3031.3,1.13018216]
[1763562426725,0.405504,3033.2,3031.3,1.62048216]
[1763562426924,0.405504,3033.0,3031.0,0.1882]
[1763562427126,0.405504,3033.0,3031.1,0.4903]
[1763562427424,0.405504,3032.8,3031.0,0.1882]
[1763562427626,0.405504,3032.6,3031.0,0.1882]
[1763562427794,0.405504,3032.6,3031.0,0.6577]
[1763562427991,0.51772318,3032.4,3031.1,0.00721595]
[1763562428301,0.1794,3033.3,3031.2,0.4695]
[1763562428503,0.1794,3033.2,3031.2,0.4695]
[1763562428690,0.405504,3033.1,3031.2,0.4695]
[1763562429098,0.1794,3033.0,3031.2,0.4695]
[1763562429647,0.1794,3033.0,3031.2,3.76849826]
[1763562429927,0.405504,3032.9,3031.3,0.37684983]
[1763562430225,0.405504,3032.9,3031.3,0.4695]
[1763562430817,0.1794,3033.3,3031.4,0.00720779]
[1763562431022,0.1794,3033.3,3031.2,0.90699264]
[1763562431023,0.51764858,3032.6,3031.5,0.4695]
[1763562431214,0.51764858,3032.6,3031.6,0.00720951]
[1763562431430,0.51764858,3032.6,3031.8,0.90699264]
[1763562431603,0.51764858,3032.6,3032.1,0.90699264]
[1763562431992,0.51764858,3032.6,3032.2,0.4695]
[1763562432716,0.51764858,3032.6,3032.3,0.00719821]
[1763562432915,0.51764858,3032.6,3032.2,0.4695]
[1763562433128,0.1794,3034.1,3032.2,0.4695]
[1763562433730,0.1667,3034.8,3032.4,0.90699264]
[1763562433938,0.4527,3035.5,3033.0,0.90699264]
[1763562434115,0.4527,3035.5,3033.1,0.6529]
[1763562434443,0.4527,3035.5,3033.2,0.4695]
[1763562434936,0.04118073,3035.4,3033.2,0.4695]
[1763562435138,0.04118073,3035.4,3033.0,0.90699264]
[1763562435447,0.04118073,3035.4,3031.9,0.67019213]
[1763562435448,0.4527,3035.3,3033.1,0.4695]
[1763562435604,0.44668744,3035.2,3032.8,0.1834]
[1763562436005,0.405504,3035.0,3032.8,0.1834]
[1763562436353,0.405504,3034.8,3032.8,3.95017963]
[1763562436529,0.405504,3034.4,3032.9,0.86451796]
[1763562436728,0.04119566,3034.3,3032.9,0.4695]
[1763562437030,0.04119566,3034.3,3032.8,6.77789762]
[1763562437031,0.04119702,3034.2,3033.0,0.4695]
[1763562438005,0.405504,3034.1,3032.8,0.1834]
[1763562438211,0.405504,3033.9,3032.8,0.1834]
[1763562438615,0.405504,3034.0,3032.8,0.1834]
[1763562438860,0.405504,3034.0,3032.2,0.1834]
[1763562439067,0.405504,3033.8,3032.2,0.1834]
[1763562439356,0.405504,3033.6,3032.2,0.1834]
[1763562439519,0.405504,3033.4,3032.2,0.1834]
[1763562439719,0.6194,3033.7,3032.3,0.47668828]
[1763562439919,0.404704,3033.6,3032.3,0.4695]
[1763562440452,0.51759751,3033.3,3032.3,0.4695]
[1763562441127,0.51759751,3033.3,3031.8,0.6529]
[1763562441448,0.0412106,3033.2,3031.8,0.1834]
[1763562441764,0.0412106,3033.2,3031.9,0.4695]
[1763562442127,0.405504,3033.1,3031.9,0.4695]
[1763562442444,0.4527,3033.1,3031.8,0.1834]
[1763562442632,0.405504,3033.0,3031.8,0.1834]
[1763562442958,0.405504,3033.0,3031.8,0.6529]
[1763562443159,0.51759751,3033.3,3031.8,3.95126469]
[1763562443365,0.51759751,3033.3,3031.9,0.86462647]
[1763562443666,0.51759751,3033.3,3032.0,3.29815303]
[1763562443859,0.51759751,3033.3,3032.0,3.76765303]
[1763562444159,0.51759751,3033.3,3032.1,0.4695]
[1763562445871,0.51759751,3033.3,3032.2,6.60306198]
[1763562446058,0.51759751,3033.3,3032.3,1.1868562]
[1763562446493,0.51759751,3033.3,3032.4,0.4796]
[1763562446696,0.51754941,3033.1,3032.4,0.4796]
[1763562447399,0.51759751,3033.3,3032.4,0.4796]
[1763562447598,0.68291541,3034.2,3033.2,0.1971]
[1763562447772,0.68291541,3034.1,3033.2,0.1971]
[1763562447968,0.68291541,3034.0,3033.1,0.1971]
[1763562448197,1.31953379,3034.3,3033.1,0.1971]
[1763562448358,0.405504,3034.1,3032.5,0.1971]
[1763562448559,0.405504,3033.8,3032.5,0.1971]
[1763562448759,0.68298483,3033.7,3032.5,0.1971]
[1763562448962,0.85183379,3034.0,3032.6,0.4796]
[1763562448963,0.04120516,3033.6,3032.6,0.4796]
[1763562449159,0.23523471,3033.8,3032.6,0.4796]
[1763562449361,0.68326127,3033.7,3032.6,0.4796]
[1763562449595,0.68326127,3033.6,3032.6,0.4796]
[1763562449801,0.1667,3033.9,3032.6,0.4796]
[1763562449983,0.1667,3033.9,3032.6,3.77709479]
[1763562449984,0.68324923,3033.8,3032.6,3.77709479]
[1763562450185,0.68324923,3033.7,3032.7,0.72717207]
[1763562450376,1.24205757,3033.6,3032.7,1.20677207]
[1763562450712,0.68452928,3033.5,3032.5,0.6767]
[1763562451022,1.2432738,3033.4,3032.5,0.6767]
[1763562451206,0.68598373,3033.3,3032.6,0.4796]
[1763562451511,0.68598373,3033.2,3032.6,0.4796]
[1763562451806,0.51753664,3033.4,3032.6,0.4796]
[1763562451962,0.51753664,3033.4,3032.6,4.17452885]
[1763562452162,0.68621397,3033.3,3032.6,4.17452885]
[1763562452361,0.51753664,3033.4,3032.7,0.4796]
[1763562452591,0.51753664,3033.4,3032.7,1.38659264]
[1763562453089,0.51753664,3033.4,3032.8,0.4796]
[1763562454274,0.51753664,3033.4,3032.8,4.57498309]
[1763562454461,0.51753664,3033.4,3032.9,0.90699264]
[1763562454663,0.51753664,3033.4,3032.9,1.38659264]
[1763562454969,0.51750526,3033.6,3032.9,0.4796]
[1763562455168,0.51750526,3033.6,3032.5,0.1971]
[1763562455367,0.68591716,3033.5,3032.5,0.1971]
[1763562455681,0.51750526,3033.6,3032.5,0.68524506]
[1763562455880,0.72711674,3033.5,3032.5,0.1971]
[1763562456113,0.51750526,3033.6,3032.6,0.48678261]
[1763562456293,0.51750526,3033.6,3032.6,1.38659264]
[1763562456812,0.51750526,3033.6,3032.7,0.4796]
[1763562458363,0.51750241,3033.4,3032.5,0.1971]
[1763562458689,0.04120924,3033.3,3032.3,0.001]
[1763562458889,0.405504,3033.2,3032.3,0.001]
[1763562459201,0.68640408,3033.1,3032.3,0.001]
[1763562459401,0.871404,3033.2,3032.3,0.001]
[1763562459566,0.68660693,3033.1,3032.3,0.001]
[1763562459767,0.4659,3033.2,3032.3,0.001]
[1763562459968,0.68658191,3033.1,3032.3,0.001]
[1763562460168,0.5071106,3033.2,3032.3,0.001]
[1763562460397,0.68673475,3033.1,3032.3,0.001]
[1763562460603,0.51759687,3033.0,3032.3,0.001]
[1763562460921,0.68666547,3033.3,3032.3,0.4638]
[1763562461206,0.51750241,3033.4,3032.3,0.4638]
[1763562461377,0.51750241,3033.4,3033.3,0.1902]
[1763562461583,0.68686748,3033.7,3033.3,0.1902]
[1763562461770,0.1665,3034.1,3033.1,0.1902]
[1763562461972,0.68693592,3034.0,3033.1,0.1902]
[1763562462171,0.72813701,3033.9,3032.6,0.1902]
[1763562462371,0.72813701,3033.9,3032.4,0.4628]
[1763562462372,1.53876971,3033.8,3032.4,0.4628]
[1763562462680,0.405504,3033.6,3032.3,0.001]
[1763562463006,0.405504,3033.4,3032.3,0.001]
[1763562463201,0.68651819,3033.4,3032.3,0.001]
[1763562463506,0.871404,3033.4,3032.3,0.001]
[1763562464497,0.4659,3033.4,3032.3,0.001]
[1763562464698,0.22669067,3033.7,3032.3,0.47098704]
[1763562464887,0.68687102,3033.6,3032.3,0.4638]
[1763562465208,0.51755639,3033.2,3032.3,0.4638]
[1763562465882,0.51755639,3033.2,3033.1,0.1902]
[1763562466085,0.1665,3034.1,3033.1,0.653]
[1763562466086,0.68745636,3034.0,3033.1,0.653]
[1763562466277,0.04120109,3033.9,3033.1,0.1902]
[1763562466589,0.6324,3034.1,3033.1,0.653]
[1763562466590,0.1665,3034.1,3033.1,0.653]
[1763562466788,0.1665,3034.1,3033.2,0.39499756]
[1763562466996,0.1665,3034.1,3033.2,0.85779756]
[1763562467197,0.1665,3034.1,3033.2,0.4628]
[1763562467577,0.1665,3034.1,3033.1,0.1902]
[1763562467902,0.04119973,3034.0,3033.1,0.1902]
[1763562468373,0.04119973,3034.0,3032.9,0.4628]
[1763562468575,0.50709973,3034.0,3032.9,0.4628]
[1763562468770,0.50709973,3034.0,3032.4,4.20469139]
[1763562469007,1.19457185,3034.0,3032.5,0.88336914]
[1763562469326,1.19444254,3034.0,3032.0,0.4628]
[1763562469475,0.51756899,3033.7,3032.2,0.4628]
[1763562469673,1.19444797,3033.6,3031.8,0.6462]
[1763562469892,1.15324281,3033.5,3031.8,0.6462]
[1763562470108,0.72855069,3033.4,3031.8,0.6462]
[1763562470308,0.173,3032.4,3031.3,0.4628]
[1763562470613,0.173,3032.4,3031.3,3.76171063]
[1763562470808,0.173,3032.7,3031.6,0.4628]
[1763562471009,0.6389,3033.0,3032.1,0.1902]
[1763562471215,0.173,3033.0,3032.1,0.1902]
[1763562473004,0.21421332,3033.0,3032.1,0.1902]
[1763562473204,0.173,3033.0,3032.1,0.1902]
[1763562473591,0.50711467,3032.9,3031.5,1.36979264]
[1763562473918,0.173,3033.0,3032.1,0.1902]
[1763562474077,0.04121467,3032.9,3032.1,0.1902]
[1763562474284,0.173,3033.0,3032.1,0.1902]
[1763562474285,0.6389,3033.0,3032.1,0.1902]
[1763562475094,0.04121467,3032.9,3031.4,0.90699264]
[1763562475419,0.4659,3032.9,3031.5,0.4628]
[1763562475775,0.4659,3032.9,3031.9,0.001]
[1763562478219,0.04121603,3032.8,3031.9,0.001]
[1763562478521,0.4659,3032.9,3031.9,0.001]
[1763562478717,0.173,3033.0,3031.9,0.001]
[1763562478718,0.173,3033.0,3032.1,0.1902]
[1763562478895,0.4659,3032.9,3031.9,0.001]
[1763562479099,0.4659,3032.9,3032.1,0.1902]
[1763562479307,0.173,3033.0,3032.1,0.1902]
[1763562480021,0.173,3033.0,3032.2,0.4628]
[1763562480196,0.4679,3033.6,3032.3,0.4638]
[1763562480627,0.002,3033.6,3032.3,0.47098456]
[1763562480790,0.002,3033.6,3032.3,3.7616241]
[1763562481110,0.002,3033.6,3032.4,0.37616241]
[1763562481312,0.002,3033.6,3032.5,0.00718285]
[1763562481526,0.002,3033.6,3033.5,0.1902]
[1763562481882,0.002,3033.6,3033.5,0.653]
[1763562482502,0.002,3033.6,3033.2,0.1902]
[1763562483031,0.51948356,3033.6,3033.2,0.653]
[1763562483220,0.51948356,3033.6,3033.3,0.4628]
[1763562483750,0.51948356,3033.6,3032.9,0.1902]
[1763562484213,0.04120652,3033.5,3032.9,0.1902]
[1763562484744,0.51948356,3033.6,3032.9,0.1902]
[1763562485048,0.04120652,3033.5,3032.7,0.4628]
[1763562485739,0.51948356,3033.6,3032.7,3.76014481]
[1763562485942,0.51948356,3033.6,3033.4,0.1902]
[1763562486303,0.51948356,3033.6,3033.5,0.4628]
[1763562486802,0.173,3035.1,3033.6,0.90699264]
[1763562487245,0.173,3035.1,3033.7,0.4628]
[1763562487856,0.002,3035.3,3033.7,0.4628]
[1763562488054,0.002,3035.3,3034.0,0.1892]
[1763562488254,0.002,3035.3,3034.1,0.4553]
[1763562488548,0.002,3035.3,3034.3,0.90699264]
[1763562488751,0.002,3035.3,3034.4,0.42027543]
[1763562488960,0.002,3035.3,3034.5,0.405504]
[1763562489101,0.002,3035.3,3034.5,0.90699264]
[1763562489414,0.002,3035.3,3034.6,0.4553]
[1763562489801,0.0012,3035.3,3034.6,0.4553]
[1763562490023,0.0012,3035.3,3034.7,0.405504]
[1763562490239,0.0012,3035.3,3034.6,0.4553]
[1763562490428,0.0012,3035.3,3034.8,0.90699264]
[1763562490736,0.0012,3035.3,3034.9,0.74974299]
[1763562490939,0.0012,3035.3,3035.0,0.4553]
[1763562492301,0.0012,3035.3,3035.2,0.90699264]
[1763562492515,0.002,3036.0,3035.2,1.36229264]
[1763562492717,0.002,3036.0,3035.3,0.4553]
[1763562494040,0.51903524,3036.0,3035.3,0.4553]
[1763562494241,0.002,3036.0,3035.3,0.4553]
[1763562494453,0.002,3036.0,3035.4,0.90699264]
[1763562494648,0.002,3036.0,3035.5,0.46567703]
[1763562494814,0.002,3036.0,3035.5,0.92097703]
[1763562495343,0.002,3036.0,3035.2,0.4553]
[1763562495642,0.1968,3035.9,3034.8,0.4553]
[1763562496207,0.0411753,3035.8,3034.8,0.4553]
[1763562496413,0.4704,3035.6,3034.3,0.4553]
[1763562496714,0.1968,3035.9,3034.3,0.4553]
[1763562496715,0.1968,3035.9,3034.4,0.90699264]
[1763562497243,0.1968,3035.9,3034.5,0.4553]
[1763562498011,0.4724,3036.0,3034.6,0.405504]
[1763562498012,0.002,3036.0,3034.6,0.405504]
[1763562498205,0.1968,3035.9,3034.5,0.4553]
[1763562498539,0.1968,3035.9,3034.8,0.90699264]
[1763562498921,0.1968,3035.9,3034.9,0.4553]
[1763562499120,0.1968,3035.9,3034.6,0.94249311]
[1763562499121,0.4724,3035.7,3034.6,0.82449311]
[1763562499427,0.4724,3035.7,3034.6,0.90699264]
[1763562499613,0.4724,3035.7,3034.6,1.36229264]
[1763562500009,0.4724,3035.7,3034.6,0.4553]
[1763562500211,0.4724,3035.7,3034.2,0.4553]
[1763562500412,0.04117802,3035.6,3033.7,0.4553]
[1763562500851,0.002,3035.7,3034.2,6.61821928]
[1763562501011,0.4704,3035.6,3034.2,6.61821928]
[1763562501361,0.4704,3035.6,3034.1,0.1892]
[1763562501725,0.4704,3035.6,3034.3,0.90699264]
[1763562503047,0.4704,3035.6,3034.2,0.4553]
[1763562503346,0.002,3035.7,3034.4,0.90699264]
[1763562503531,0.002,3035.7,3034.5,1.13672517]
[1763562503732,0.002,3035.7,3034.6,0.4553]
[1763562504748,0.002,3035.7,3034.7,3.29521863]
[1763562505545,0.002,3035.7,3034.7,3.78241863]
[1763562505748,0.002,3035.7,3034.4,4.20253706]
[1763562505749,0.4744,3035.6,3034.4,4.20253706]
[1763562505948,0.4744,3035.6,3034.5,0.74981855]
[1763562506375,0.51713739,3035.4,3034.5,0.74981855]
[1763562506561,0.51713739,3035.4,3034.3,0.90699264]
[1763562506765,0.51713739,3035.4,3034.3,4.20259604]
[1763562507078,0.51713739,3035.4,3034.4,0.4872]
[1763562507374,0.51714804,3035.2,3034.4,0.4872]
[1763562507741,0.51714804,3035.2,3034.6,0.90699264]
[1763562507953,0.51714804,3035.2,3034.7,0.75252119]
[1763562508148,0.51714804,3035.2,3034.7,1.23972119]
[1763562508349,0.51714804,3035.2,3034.8,0.4872]
[1763562508722,0.51714804,3035.2,3035.1,4.20177699]
[1763562508841,0.002,3035.7,3035.1,7.49656134]
[1763562509035,0.002,3035.7,3035.2,1.41147806]
[1763562509281,0.002,3035.7,3034.8,0.90699264]
[1763562509777,0.002,3035.7,3034.7,4.5349251]
[1763562509951,0.4764,3035.7,3034.8,0.90699264]
[1763562510148,0.4764,3035.7,3034.7,0.75252119]
[1763562510382,0.4764,3035.7,3034.8,0.90699264]
[1763562510383,0.002,3035.7,3034.8,0.90699264]
[1763562510586,0.002,3035.7,3034.9,0.49547325]